Workbook

Sheet Burden
A1: RURAL ENERGY SAVINGS PROGRAM
A2: Rural Utilities Service, USDA
A3: OMB # 0572-0151
A4: Section of Rule | B4: Title | C4: Form No. (if any) | D4: No. of Respondents | E4: Reports Filed | F4: Total Responses (D) x (E) | G4: Estimated No. of Manhours per response | H4: Estimated Total Manhours (F) x (G) | I4: Wage Class | J4: Total Cost (H) x (I)
A5: (A) | B5: (B) | C5: (C) | D5: (D) | E5: (E) | F5: (F) | G5: (G) | H5: (H) | I5: (I) | J5: (J)
B6: Application
B8: SAM Registration | C8: Sam.gov | D8: 25 | E8: 1 | F8: =D8*E8 -> 25 | G8: 2.00 | H8: =G8*F8 -> 50 | I8: 76.55 | J8: =H8*I8 -> $3,828
B10: Narrative Grant Proposal and Application | C10: Written | D10: 25 | E10: 1 | F10: =D10*E10 -> 25 | G10: 10.00 | H10: =F10*G10 -> 250 | I10: 76.55 | J10: =H10*I10 -> $19,138
B12: RUS Environmental Questionnaire/Profile | C12: Written | D12: 25 | E12: 1 | F12: =D12*E12 -> 25 | G12: 6.00 | H12: =G12*F12 -> 150 | I12: 76.55 | J12: =I12*H12 -> $11,483
B18: Award Closing, Servicing and Reporting
B20: Grant Agreement | C20: Written | D20: 8 | E20: 1 | F20: =SUM(D20*E20) -> 8 | G20: 1.00 | H20: =F20*G20 -> 8 | I20: 76.55 | J20: =I20*H20 -> $612
B22: Performance Reports | C22: Written | D22: 40 | E22: 4 | F22: 160 | G22: 2.00 | H22: =F22*G22 -> 320 | I22: 76.55 | J22: =I22*H22 -> $24,496
B24: Final Performance Report | C24: Written | D24: 8 | E24: 1 | F24: 8 | G24: 1.00 | H24: =F24*G24 -> 8 | I24: 76.55 | J24: =I24*H24 -> $612
B26: SAM Maintenance | C26: Sam.gov | D26: 40 | E26: 1 | F26: =SUM(D26*E26) -> 40 | G26: 1.00 | H26: =SUM(F26*G26) -> 40 | I26: 76.55 | J26: =I26*H26 -> $3,062
F29: =SUM(F8:F28) -> 291 | H29: =SUM(H8:H28) -> 826 | J29: =SUM(J8:J28) -> $63,230
B30: Number of Respondents | D30: 40
B31: Total Estimated Annual Responses | F31: =F29 -> 291
B32: Total Estimated Annual Burden Hours | H32: =H29 -> 826
B33: Total Annual Burden Cost | J33: =J29 -> $63,230
B34: Total Estimated Burden Hours per response | G34: =H32/F31 -> 2.838
A36: Notes: | B36: Burden has not been included for record keeping because there is no requirement to maintain the records past three years.

Sheet Prof. Wage
A1: Table 2: Estimated Wages for Employee Time
A3: Wage Category | B3: Mean Wage* | C3: 29.6% Benefits** | D3: Total Hourly Wage | F3: * | G3: http://www.bls.gov/oes/current/oes_stru.htm | L3: Occupational Employment and Wages, May 2022
A4: General and Operatons Manager (11-021) | B4: 59.07 | C4: =B4*A12 -> 17.48 | D4: =B4+C4 -> 76.55
F5: ** | G5: https://www.bls.gov/news.release/pdf/ecec.pdf | L5: EMPLOYER COSTS FOR EMPLOYEE COMPENSATION – DECEMBER 2023
A12: 0.296 | B12: Benefit

Sheet Federal
A3: Table 4: Wage Rates for Staff Positions:
A4: Staff Position | B4: Wage Rate[1] | C4: Benefits (36.25%) | D4: Hourly Rate
A5: GS 5, Step 5 | B5: $24.52 | C5: =B5*0.3625 -> $8.89 | D5: =B5+C5 -> $33.41 | G5: https://www.opm.gov/policy-data-oversight/pay-leave/salaries-wages/salary-tables/24Tables/html/DCB_h.aspx
A6: GS 12, Step 5 | B6: $53.87 | C6: =B6*0.3625 -> $19.53 | D6: =B6+C6 -> $73.40
A7: GS 13, Step 5 | B7: $64.06 | C7: =B7*0.3625 -> $23.22 | D7: =B7+C7 -> $87.28 | G7: https://www.opm.gov/policy-data-oversight/pay-leave/salaries-wages/2023/general-schedule
G8: Executive Senior Level (opm.gov)
F9: https://www.whitehouse.gov/wp-content/uploads/legacy_drupal_files/omb/memoranda/2008/m08-13.pdf
A18: Staff Position | B18: Total Hourly Wage | C18: Hours Required | D18: Cost
A19: Application Receipt, Review, Evaluate and Rank
A20: GS 12, Step 5 | B20: =D6 -> $73.40 | C20: 10 | D20: =B20*C20 -> $733.98
A26: Grant Award and Administraton
A27: GS 5, Step 5 | B27: =D5 -> $33.41 | C27: 6 | D27: =B27*C27 -> $200.45
A28: GS 12, Step 5 | B28: =D6 -> $73.40 | C28: 8 | D28: =B28*C28 -> $587.18
A29: GS 13, Step 5 | B29: =D7 -> $87.28 | C29: 1 | D29: =B29*C29 -> $87.28
A33: Cost Each | D33: =D27+D28+D29 -> $874.92
A35: Post Award Monitoring
A36: GS 5, Step 5 | B36: =D5 -> $33.41 | C36: 10 | D36: =B36*C36 -> $334.09
A37: GS 12, Step 5 | B37: =D6 -> $73.40 | C37: 20 | D37: =B37*C37 -> $1,467.96
A40: Cost each | D40: =D36+D37 -> $1,802.04
A44: Table 5: Total Cost to the Federal Government:
A45: Stage | B45: Cost of Each | C45: Number of Entities | D45: Total Cost
A46: Application Receipt, Review, Evaluate and Rank | B46: =D20 -> $733.98 | C46: 25 | D46: =B46*C46 -> $18,349.47
A47: Grant Award and Administration | B47: =D33 -> $874.92 | C47: 8 | D47: =B47*C47 -> $6,999.33
A48: Post Award Monitoring | B48: =D40 -> $1,802.04 | C48: 40 | D48: =B48*C48 -> $72,081.70
A50: Total Cost to Federal Government | D50: =D46+D47+D48 -> $97,430.49

Sheet Not in Burden
A3: Section of Rule | B3: Title | C3: Form No. (if any) | D3: No. of Respondents | E3: Reports Filed | F3: Total Responses (D) x (E) | G3: Estimated No. of Manhours per response | H3: Estimated Total Manhours (F) x (G) | I3: Wage Class | J3: Total Cost (H) x (I)
A4: (A) | B4: (B) | C4: (C) | D4: (D) | E4: (E) | F4: (F) | G4: (G) | H4: (H) | I4: (I) | J4: (J)
B5: Application for Federal Assistance (4040-0004) | C5: SF-424 | D5: 25 | E5: 1.00 | F5: =SUM(D5*E5) -> 25 | G5: 1.10
B6: Budget Information Non-Construction Programs (4040-0006) | C6: SF-424A | D6: 25 | E6: 1.00 | F6: =SUM(D6*E6) -> 25 | G6: 1.80
B7: OR Budget Information Construction Programs (4040-0008) | C7: SF-424C
B8: Assurances Construction Programs (4040-0009) | C8: SF-424D | D8: 25 | E8: 1.00 | F8: 40
B9: Letter of Intent (common form pkg pending in OIRA ) | C9: RD 1942-46 | D9: 8 | E9: 1.00 | F9: =SUM(D9*E9) -> 8 | G9: 1.00
B10: Disclosure of Lobbying Activities (4040-0013) | C10: SF-LLL | D10: 25 | E10: 1.00 | F10: =SUM(D10*E10) -> 25 | G10: 0.10
B11: Post Award:
B12: Federal Financial Report (4040-0014) | C12: SF-425 | D12: 40 | E12: 4.00 | F12: =SUM(D12*E12) -> 160 | G12: 1.00
B13: Request for Reimbursement or Advance of Funds (4040-0012) | C13: SF-270 | D13: 2 | E13: 4.00 | F13: =D13*E13 -> 8 | G13: 1.00
B14: Outlay Report and Request for Reimbursement (Const.) (4040-0011) | C14: SF-271 | D14: 38 | E14: 4.00 | F14: =SUM(D14*E14) -> 152 | G14: 1
